lending/lending_fUSD_20240411
["ID","MTS","AMOUNT","RATE_DAILY","PERIOD"]
[322113520,1712793648229,3732.72,0.00018967,2]
[322113521,1712793650797,178.50694492,0.00018996,2]
[322113522,1712793707329,150.0,0.00018995,2]
[322113523,1712793723467,5000.0,0.00019003,2]
[322113524,1712793733904,591.97,0.00017169,2]
[322113525,1712793745238,1468.47901264,0.00018995,2]
[322113526,1712793746102,545.75727212,0.00018995,2]
[322113527,1712793761458,4452.30811324,0.00018991,2]
[322113528,1712793767191,240.97703145,0.00018995,2]
[322113529,1712793768020,455.44603868,0.00018995,2]
[322113531,1712793851168,435.2,0.00018964,2]
[322113532,1712793865274,200.0,0.00018964,2]
[322113533,1712793886917,212.93,0.00018966,2]
[322113534,1712793911876,250.0,0.00018955,2]
[322113537,1712793956869,500.0,0.00018982,2]
[322113538,1712794006885,233.14,0.00018972,2]
[322113539,1712794012930,1470.97,0.00018983,2]
[322113540,1712794020796,155.0,0.00018982,2]
[322113544,1712794040750,155.0,0.00018898,2]
[322113546,1712794059274,245.64137737,0.00018898,2]
[322113547,1712794083857,155.0,0.00019002,2]
[322113548,1712794103642,538.18635898,0.00019002,2]
[322113549,1712794166278,210.24,0.00015251,2]
[322113550,1712794192340,500.0,0.00018996,2]
[322113565,1712794231676,-1253.17373908,0.00019003,2]
[322113566,1712794231685,-150.0,0.00019004,2]
[322113567,1712794231695,-8237.25,0.00019004,2]
[322113568,1712794231704,-23900.0,0.00019005,2]
[322113569,1712794231713,-596.7,0.00019066,2]
[322113570,1712794231722,-2488.14,0.00019075,2]
[322113571,1712794231731,-1265.77,0.00019135,2]
[322113572,1712794231740,-500.0,0.00019135,2]
[322113573,1712794231750,-171.06,0.00019135,2]
[322113574,1712794231760,-250.68136875,0.000192,2]
[322113575,1712794231770,-150.99,0.0001931,2]
[322113576,1712794231779,-180.28,0.00019337,2]
[322113577,1712794231789,-180.28,0.0001939,2]
[322113578,1712794231798,-591.97,0.00019433,2]
[322113579,1712794231807,-180.28,0.00019443,2]
[322113580,1712794231816,-180.28,0.00019496,2]
[322113581,1712794231829,-180.28,0.00019549,2]
[322113582,1712794231838,-180.28,0.00019602,2]
[322113583,1712794231847,-180.28,0.00019655,2]
[322113584,1712794231856,-184.0,0.000197,2]
[322113585,1712794231866,-416.65089833,0.00019703,2]
[322113586,1712794231878,-835.06910167,0.00019703,2]
[322113587,1712794231887,-1190.70454254,0.00019708,2]
[322113588,1712794231898,-61.01545746,0.00019708,2]
[322113589,1712794231907,-180.28,0.00019708,2]
[322113590,1712794231916,-1251.72,0.00019713,2]
[322113591,1712794231926,-1251.72,0.00019719,2]
[322113592,1712794231935,-52.17021937,0.00019724,2]
[322113593,1712794231947,-369.41,0.00019724,2]
[322113594,1712794231975,-830.13978063,0.00019724,2]
[322113595,1712794231984,-1251.72,0.00019729,2]
[322113596,1712794231994,-1251.72,0.00019734,2]
[322113597,1712794232003,-703.94903759,0.00019739,2]
[322113598,1712794232015,-547.77096241,0.00019739,2]
[322113599,1712794232025,-1251.72,0.00019745,2]
[322113600,1712794232035,-1251.72,0.0001975,2]
[322113601,1712794232045,-1251.72,0.00019755,2]
[322113602,1712794232055,-1251.72,0.0001976,2]
[322113603,1712794232064,-180.28,0.00019761,2]
[322113604,1712794232076,-1251.72,0.00019765,2]
[322113605,1712794232086,-1251.72,0.0001977,2]
[322113606,1712794232095,-564.8,0.00019774,2]
[322113607,1712794232105,-1251.72,0.00019776,2]
[322113608,1712794232114,-1251.72,0.00019781,2]
[322113609,1712794232123,-1251.72,0.00019786,2]
[322113610,1712794232133,-1251.72,0.00019791,2]
[322113611,1712794232142,-1251.72,0.00019796,2]
[322113612,1712794232152,-1251.72,0.00019801,2]
[322113613,1712794232162,-180.28,0.00019814,2]
[322113614,1712794232173,-160.33,0.00019864,2]
[322113615,1712794232183,-180.28,0.00019867,2]
[322113616,1712794232195,-180.28,0.0001992,2]
[322113617,1712794232206,-180.28,0.00019974,2]
[322113618,1712794232217,-500.0,0.0002,2]
[322113619,1712794232228,-193.238424,0.0002,2]
[322113620,1712794232240,-180.28,0.00020027,2]
[322113621,1712794232250,-180.28,0.0002008,2]
[322113622,1712794232260,-180.28,0.00020133,2]
[322113623,1712794232270,-180.28,0.00020186,2]
[322113624,1712794232280,-180.28,0.00020239,2]
[322113625,1712794232291,-168.44,0.0002029,2]
[322113626,1712794232301,-180.28,0.00020292,2]
[322113627,1712794232312,-241.09,0.00020336,2]
[322113628,1712794232325,-180.28,0.00020345,2]
[322113629,1712794232335,-14701.75973005,0.00020468,2]
[322113630,1712794232357,-5974.49897799,0.00020468,2]
[322113631,1712794232370,-280.56667432,0.00020468,2]
[322113632,1712794232382,-716.61,0.00020468,2]
[322113633,1712794232410,-3739.4,0.00020468,2]
[322113634,1712794232432,-1373.27,0.00020468,2]
[322113642,1712794237949,-20007.72773412,0.00020468,2]
[322113644,1712794237961,-1448.68828116,0.00020479,2]
[322113645,1712794237972,-14248.67311557,0.00020516,2]
[322113647,1712794237984,-522.0,0.00020547,2]
[322113649,1712794237996,-22075.3898532,0.00020574,2]
[322113650,1712794238007,-12332.62835338,0.0002058,2]
[322113652,1712794238018,-2829.76859753,0.00020616,2]
[322113653,1712794238030,-2569.35534544,0.00020686,2]
[322113654,1712794238040,-1448.68828116,0.00020712,2]
[322113655,1712794238051,-250.89815982,0.00020787,2]
[322113656,1712794238060,-158.89767585,0.0002079,2]
[322113657,1712794238070,-1000.0,0.000208,2]
[322113658,1712794238082,-19146.0824,0.000209,2]
[322113659,1712794238092,-500.0,0.000209,2]
[322113660,1712794238102,-8020.57967661,0.000209,2]
[322113661,1712794238112,-198.02966088,0.000209,2]
[322113662,1712794238122,-320.72218685,0.000209,2]
[322113663,1712794238132,-6915.0725267,0.000209,2]
[322113664,1712794238142,-366.3347517,0.000209,2]
[322113665,1712794238151,-1852.21415446,0.000209,2]
[322113666,1712794238161,-932.37958271,0.000209,2]
[322113667,1712794238170,-932.37958255,0.000209,2]
[322113668,1712794238179,-932.37958255,0.000209,2]
[322113669,1712794238189,-932.37958255,0.000209,2]
[322113670,1712794238201,-932.37958255,0.000209,2]
[322113671,1712794238211,-932.37958255,0.000209,2]
[322113672,1712794238221,-932.37958255,0.000209,2]
[322113673,1712794238235,-340.2992,0.000209,2]
[322113674,1712794238245,-932.37958255,0.000209,2]
[322113675,1712794238254,-932.37958255,0.000209,2]
[322113676,1712794238264,-932.37958255,0.000209,2]
[322113677,1712794238273,-932.37958255,0.000209,2]
[322113678,1712794238283,-7342.13903548,0.000209,2]
[322113679,1712794238293,-932.37958255,0.000209,2]
[322113680,1712794238303,-932.37958255,0.000209,2]
[322113681,1712794238313,-932.37958255,0.000209,2]
[322113682,1712794238322,-932.37958255,0.000209,2]
[322113683,1712794238335,-932.37958255,0.000209,2]
[322113684,1712794238344,-339.74931506,0.000209,2]
[322113685,1712794238354,-210.0,0.00020905,2]
[322113686,1712794238363,-788.37437772,0.00020936,2]
[322113687,1712794238373,-3068.88197041,0.00020936,2]
[322113688,1712794238382,-794.72613861,0.00020936,2]
[322113689,1712794238392,-2996.90487818,0.00020979,2]
[322113690,1712794238403,-471.041109,0.00020995,4]
[322113691,1712794238412,-471.041109,0.00020995,4]
[322113692,1712794238422,-628.041109,0.00020995,4]
[322113693,1712794238431,-471.041109,0.00020996,4]
[322113694,1712794238442,-9802.5162293,0.00020996,2]
[322113695,1712794238452,-628.041109,0.00020996,4]
[322113696,1712794238461,-155.46858192,0.00020997,2]
[322113697,1712794238471,-155.85735465,0.00020997,2]
[322113698,1712794238481,-215.43117381,0.00020997,2]
[322113699,1712794238491,-201.35843656,0.00020997,2]
[322113700,1712794238505,-155.49479633,0.00020997,2]
[322113701,1712794238515,-471.041109,0.00020997,4]
[322113702,1712794238525,-471.041109,0.00020997,4]
[322113703,1712794238535,-471.041109,0.00020997,4]
[322113704,1712794238545,-628.041109,0.00020997,4]
[322113705,1712794238555,-3769.17811368,0.00020998,2]
[322113706,1712794238565,-471.041108,0.00020998,4]
[322113707,1712794238580,-471.041108,0.00020998,4]
[322113708,1712794238590,-471.041109,0.00020998,4]
[322113709,1712794238600,-205.75093505,0.00020998,2]
[322113710,1712794238612,-376.6233637,0.00020998,2]
[322113712,1712794238623,-193.75811988,0.00020998,2]
[322113714,1712794238634,-206.27456611,0.00020998,2]
[322113716,1712794238645,-201.84235747,0.00020998,2]
[322113717,1712794238656,-155.0,0.00020998,2]
[322113718,1712794238666,-3372.0620942,0.00020998,2]
[322113719,1712794238677,-160.2631089,0.00020998,2]
[322113720,1712794238686,-774.34485208,0.00020998,2]
[322113721,1712794238696,-407.93141682,0.00020998,2]
[322113722,1712794238706,-2823.23348119,0.00020998,2]
[322113723,1712794238716,-407.1301357,0.00020998,2]
[322113724,1712794238725,-155.24333859,0.00020998,2]
[322113725,1712794238735,-447.07544994,0.00020998,2]
[322113726,1712794238745,-8366.913355,0.00020998,2]
[322113727,1712794238756,-277.3117094,0.00020998,2]
[322113728,1712794238766,-266.41638357,0.00020998,2]
[322113729,1712794238777,-273.08708116,0.00020998,2]
[322113730,1712794238787,-628.041109,0.00020998,4]
[322113731,1712794238797,-3861.37650967,0.00020999,2]
[322113732,1712794238807,-150.01,0.00020999,2]
[322113733,1712794238817,-2813.01144555,0.00020999,2]
[322113734,1712794238828,-359.24172675,0.00020999,2]
[322113735,1712794238837,-773183.36779407,0.00021,2]
[322113736,1712794238846,-714.96210186,0.00021,2]
[322113737,1712794238855,-8899133.12715206,0.00021,2]
[322113738,1712794238865,-609.3,0.00021,2]
[322113739,1712794238875,-2184006.0266303,0.00021,2]
[322113740,1712794238887,-1041.73,0.00021,2]
[322113741,1712794238896,-2000.0,0.00021,2]
[322113742,1712794238906,-200.0,0.00021,2]
[322113743,1712794238919,-250.0,0.00021,3]
[322113744,1712794238929,-2000.0,0.00021,2]
[322113745,1712794238938,-200.0,0.00021,2]
[322113746,1712794238947,-2000.0,0.00021,2]
[322113747,1712794238956,-200.0,0.00021,2]
[322113748,1712794238965,-2137.06829,0.00021,2]
[322113749,1712794238975,-188.98508316,0.00021,2]
[322113750,1712794238984,-3653.07,0.00021,2]
[322113751,1712794238993,-3637.376,0.00021,2]
[322113752,1712794239003,-3625.0463558,0.00021072,2]
[322113753,1712794239014,-6946.1624898,0.00021072,2]
[322113754,1712794239024,-832.17736685,0.00021086,2]
[322113755,1712794239035,-394.0,0.000211,2]
[322113756,1712794239058,-175.8,0.00021116,2]
[322113757,1712794239069,-2569.35534544,0.00021202,2]
[322113758,1712794239082,-2000.0,0.0002121,2]
[322113759,1712794239091,-200.0,0.0002121,2]
[322113760,1712794239102,-2000.0,0.0002121,2]
[322113761,1712794239111,-200.0,0.0002121,2]
[322113762,1712794239122,-2000.0,0.0002121,2]
[322113763,1712794239132,-200.0,0.0002121,2]
[322113764,1712794239142,-1448.68828116,0.0002129,2]
[322113765,1712794239151,-618.0,0.000213,2]
[322113766,1712794239161,-435.2,0.00021334,2]
[322113767,1712794239171,-1951.3,0.0002137,2]
[322113768,1712794239182,-3775.0,0.000214,2]
[322113769,1712794239191,-2000.0,0.00021422,2]
[322113770,1712794239201,-200.0,0.00021422,2]
[322113771,1712794239210,-2000.0,0.00021422,2]
[322113772,1712794239221,-200.0,0.00021422,2]
[322113773,1712794239230,-200.0,0.00021422,2]
[322113774,1712794239240,-14248.67311552,0.00021548,2]
[322113775,1712794239251,-1448.68828118,0.00021585,2]
[322113776,1712794239261,-2000.0,0.00021636,2]
[322113777,1712794239271,-200.0,0.00021636,2]
[322113778,1712794239280,-2000.0,0.00021636,2]
[322113779,1712794239291,-200.0,0.00021636,2]
[322113780,1712794239301,-200.0,0.00021636,2]
[322113781,1712794239310,-2829.76859748,0.00021636,2]
[322113782,1712794239321,-591.97,0.00021697,2]
[322113783,1712794239332,-20000.0,0.0002174,3]
[322113784,1712794239342,-10257.0,0.00021752,3]
[322113785,1712794239351,-522.0,0.0002178,2]
[322113786,1712794239361,-2488.14,0.00021815,2]
[322113787,1712794239370,-2000.0,0.00021853,2]
[322113788,1712794239380,-200.0,0.00021853,2]
[322113789,1712794239390,-2000.0,0.00021853,2]
[322113790,1712794239399,-200.0,0.00021853,2]
[322113791,1712794239409,-200.0,0.00021853,2]
[322113792,1712794239418,-208.81131443,0.000219,2]
[322113793,1712794239428,-208.81131443,0.000219,2]
[322113794,1712794239438,-790.9808523,0.000219,2]
[322113795,1712794239449,-250.0,0.00021918,2]
[322113796,1712794239459,-8306.57,0.00021918,2]
[322113797,1712794239468,-250.0,0.00021918,2]
[322113798,1712794239483,-150.0,0.00021918,2]
[322113800,1712794239493,-2137.0683,0.0002193,2]
[322113802,1712794239502,-1134.43797734,0.00021999,2]
[322113804,1712794239512,-783.68958544,0.00022,2]
[322113806,1712794239522,-562.65039884,0.00022,2]
[322113808,1712794239532,-282.16237035,0.00022,2]
[322113810,1712794239542,-952.17194491,0.00022,2]
[322113812,1712794239551,-40051.28369038,0.00022,2]
[322113814,1712794239561,-175.8,0.00022236,2]
[322113817,1712794239571,-564.8,0.00022245,2]
[322113819,1712794239583,-180.0,0.00022301,2]
[322113821,1712794239593,-4763.86367803,0.00022461,2]
[322113823,1712794239603,-6426.42648233,0.000225,2]
[322113826,1712794239612,-14248.67311552,0.00022579,2]
[322113827,1712794239623,-203.0,0.00022608,2]
[322113828,1712794239632,-2829.76859748,0.00022657,2]
[322113829,1712794239642,-62089.45757243,0.00022738,2]
[322113830,1712794239651,-10000.0,0.00022944,2]
[322113831,1712794239661,-800.0,0.00022986,2]
[322113832,1712794239671,-157.041109,0.00022995,5]
[322113833,1712794239681,-157.041109,0.00022995,4]
[322113834,1712794239691,-157.041109,0.00022996,5]
[322113835,1712794239701,-157.041109,0.00022997,5]
[322113836,1712794239710,-157.041109,0.00022997,5]
[322113837,1712794239722,-157.041109,0.00022998,5]
[322113838,1712794239731,-307.07035254,0.00023,2]
[322113839,1712794239741,-155.0,0.00023,2]
[322113840,1712794239750,-155.0,0.00023,2]
[322113841,1712794239763,-300.0,0.00023,3]
[322113842,1712794239772,-2137.0683,0.0002318,2]
[322113843,1712794239784,-1041.73,0.000232,2]
[322113844,1712794239794,-8020.57967658,0.00023355,2]
[322113845,1712794239803,-175.8,0.00023356,2]
[322113846,1712794239812,-1000.0,0.000234,2]
[322113847,1712794239822,-1000.0,0.000234,2]
[322113848,1712794239833,-320.7221868,0.00023416,2]
[322113849,1712794239843,-609.3,0.000236,2]
[322113850,1712794239852,-14248.67311552,0.00023611,2]
[322113851,1712794239862,-189.122,0.00023655,2]
[322113852,1712794239871,-2829.76859748,0.00023677,2]
[322113853,1712794239881,-19460.06407151,0.000237,2]
[322113854,1712794239891,-435.2,0.00023705,2]
[322113855,1712794239900,-10189.52478473,0.00023802,2]
[322113856,1712794239910,-591.97,0.00023961,2]
[322113857,1712794239919,-157.041108,0.00023995,5]
[322113858,1712794239929,-224.62727988,0.00024,2]
[322113859,1712794239938,-1000.0,0.000241,2]
[322113860,1712794239948,-313.28763206,0.00024343,2]
[322113861,1712794239958,-235.85283232,0.00024344,2]
[322113862,1712794239967,-906.4142451,0.00024344,2]
[322113863,1712794239976,-2137.0683,0.0002444,2]
[322113864,1712794239986,-175.8,0.00024476,2]
[322113865,1712794239995,-398.0,0.00024478,2]
[322113866,1712794240004,-3039.0,0.00024478,2]
[322113867,1712794240014,-152.655,0.00024478,2]
[322113868,1712794240023,-1470.0,0.00024478,2]
[322113869,1712794240241,-1140.0,0.00024478,2]
[322113870,1712794240252,-2437.0,0.00024478,2]
[322113871,1712794240262,-1635.0,0.00024478,2]
[322113872,1712794240271,-446.844,0.00024478,2]
[322113873,1712794240281,-442.0,0.00024478,2]
[322113874,1712794240290,-215.0,0.00024478,2]
[322113875,1712794240299,-1437.972,0.00024478,2]
[322113876,1712794240309,-4796.0,0.00024478,2]
[322113877,1712794240318,-5711.0,0.00024478,2]
[322113878,1712794240329,-2463.0,0.00024478,2]
[322113879,1712794240339,-36316.05173396,0.00024478,2]
[322113880,1712794240817,-1253.94826604,0.00024478,2]
[322113881,1712794240828,-1052.0,0.00024478,2]
[322113882,1712794240839,-2488.14,0.00024554,2]
[322113883,1712794240848,-14248.67311552,0.00024642,2]
[322113884,1712794240860,-500.0,0.00024658,2]
[322113885,1712794240871,-150.0,0.00024678,2]
[322113886,1712794240882,-150.0,0.00024678,2]
[322113887,1712794240891,-150.0,0.00024678,2]
[322113888,1712794240901,-155.615,0.00024678,2]
[322113889,1712794240910,-150.642,0.00024678,2]
[322113890,1712794240919,-460.0,0.00024678,2]
[322113891,1712794240929,-1389.0,0.00024678,2]
[322113892,1712794240939,-2288.0,0.00024678,2]
[322113893,1712794240948,-973.52,0.00024678,2]
[322113894,1712794240958,-1228.0,0.00024678,2]
[322113895,1712794240968,-540.0,0.00024678,2]
[322113896,1712794240978,-1260.0,0.00024678,2]
[322113897,1712794240987,-435.0,0.00024678,2]
[322113898,1712794240996,-607.0,0.00024678,2]
[322113899,1712794241006,-812.723,0.00024678,2]
[322113900,1712794241015,-280.926,0.00024678,2]
[322113901,1712794241026,-1945.0,0.00024678,2]
[322113902,1712794241035,-89268.04266741,0.0002469,5]
[322113903,1712794241049,-17749.51936764,0.0002469,5]
[322113904,1712794241060,-1478.26174416,0.0002469,5]
[322113905,1712794241213,-290.46367653,0.00021,2]
[322113906,1712794241223,-2282.80838016,0.0002469,5]
[322113907,1712794241671,-173.914582,0.00019726,2]
[322113908,1712794241691,-932.37958255,0.000209,2]
[322113909,1712794241701,-179.07024958,0.000209,2]
[322113910,1712794241710,-5056.40639887,0.0002469,5]
[322113911,1712794241743,-359.56019672,0.0002469,5]
[322113918,1712794242678,-173.914582,0.00020548,2]
[322113921,1712794242687,-150.01,0.00020999,2]
[322113923,1712794242696,-269.14939992,0.00020999,2]
[322113924,1712794242705,-624.54052042,0.0002469,5]
[322113926,1712794242717,-1914.552,0.0002469,5]
[322113928,1712794242728,-1082.27,0.0002469,5]
[322113944,1712794242947,-8286.00000626,0.0002469,5]
[322113945,1712794243062,-20987.19568031,0.0002469,5]
[322113946,1712794243071,-2829.76859748,0.00024698,2]
[322113947,1712794243082,-564.8,0.00024717,2]
[322113948,1712794243091,-2223.73711434,0.000248,2]
[322113949,1712794243100,-39646.76213106,0.00024857,2]
[322114033,1712794245728,-932.37958255,0.000209,2]
[322114034,1712794245738,-2250.40915644,0.00020999,2]
[322114035,1712794245748,-173.914582,0.0002137,2]
[322114036,1712794245757,-173.914582,0.00022192,2]
[322114037,1712794245768,-39074.09510014,0.00024857,2]
[322114038,1712794245779,-157.041108,0.00024995,5]
[322114039,1712794245790,-2603.52703539,0.00025,2]
[322114040,1712794245801,-155.0,0.00025,2]
[322114041,1712794245811,-350.0,0.00025,3]
[322114042,1712794245822,-1852.21415446,0.0002535,2]
[322114043,1712794245832,-7342.13903546,0.0002535,2]
[322114044,1712794245842,-150.0,0.000254,2]
[322114045,1712794245853,-200.0,0.00025428,2]
[322114046,1712794245864,-175.8,0.00025596,2]
[322114047,1712794245875,-14248.67311552,0.00025674,2]
[322114048,1712794245885,-2137.0683,0.0002568,2]
[322114049,1712794245894,-1041.73,0.000257,2]
[322114050,1712794245904,-2829.76859748,0.00025718,2]
[322114051,1712794245914,-200.0,0.00025792,2]
[322114052,1712794245923,-8020.57967658,0.00025809,2]
[322114053,1712794245933,-609.3,0.000259,2]
[322114054,1712794245942,-150.0,0.000259,2]
[322114055,1712794245952,-320.7221868,0.00025933,2]
[322114056,1712794245962,-157.041108,0.00025995,5]
[322114057,1712794245973,-55648.6826792,0.00026,2]
[322114058,1712794245990,-250.68136875,0.00026,2]
[322114059,1712794246043,-516.95977454,0.00026,2]
[322114060,1712794246055,-1938.60572945,0.00026,2]
[322114062,1712794836693,632.19,0.00017468,2]
[322114063,1712794867813,1000000.0,0.00032962,29]
[322114064,1712794879003,1000000.0,0.00032962,29]
[322114065,1712794881088,1000000.0,0.00032962,29]
[322114066,1712794882552,1000000.0,0.00032962,29]
[322114067,1712794883800,2580.91472145,0.00018393,2]
[322114068,1712794883921,1000000.0,0.00032962,29]
[322114069,1712794885317,1000000.0,0.00032962,29]
[322114070,1712794886764,1000000.0,0.00032962,29]
[322114071,1712794888147,1000000.0,0.00032962,29]
[322114072,1712794889544,1000000.0,0.00032962,29]
[322114073,1712794891206,1000000.0,0.00032962,29]
[322114076,1712794953992,-98000.0,0.0002469,5]
[322114079,1712794996043,3500.0,0.000209,7]
[322114083,1712795223681,2724.79,0.00018824,2]
[322114084,1712795230869,3300.0,0.000209,7]
[322114120,1712795358962,600.58,0.00017012,2]
[322114126,1712795423725,13673.75,0.0001887,2]
[322114137,1712795431894,-1253.17373908,0.0001923,2]
[322114138,1712795431904,-2203.09868202,0.00019231,2]
[322114139,1712795431913,-358.32625153,0.00019231,2]
[322114140,1712795431922,-903.41091443,0.00019231,2]
[322114141,1712795431932,-574.31820552,0.00019236,2]
[322114142,1712795431942,-315.58,0.00019243,2]
[322114143,1712795431953,-23306.3841991,0.0001926,2]
[322114144,1712795431962,-284.97283069,0.0001926,2]
[322114145,1712795431971,-150.0,0.00019261,2]
[322114146,1712795431980,-150.0,0.00019261,2]
[322114147,1712795431989,-23900.0,0.00019263,2]
[322114148,1712795431999,-600.58,0.00019275,2]
[322114149,1712795432008,-499.99,0.00019275,2]
[322114150,1712795432017,-322.74,0.00019284,2]
[322114151,1712795432026,-611.4,0.00019284,2]
[322114152,1712795432037,-150.99,0.00019284,2]
[322114153,1712795432046,-200.0,0.00019287,2]
[322114154,1712795432056,-150.99,0.00019287,2]
[322114155,1712795432066,-315.58,0.00019296,2]
[322114156,1712795432075,-356.61106935,0.000193,2]
[322114157,1712795432086,-1000.0,0.00019307,2]
[322114158,1712795432095,-315.58,0.00019349,2]
[322114159,1712795432104,-315.58,0.00019401,2]
[322114160,1712795432113,-315.58,0.00019454,2]
[322114161,1712795432123,-165.72417105,0.00019475,2]
[322114162,1712795432132,-315.58,0.00019507,2]
[322114163,1712795432141,-315.58,0.0001956,2]
[322114164,1712795432152,-155.4,0.00019579,2]
[322114165,1712795432162,-155.4,0.00019604,2]
[322114166,1712795432171,-315.58,0.00019612,2]
[322114167,1712795432181,-2342.61,0.00019624,2]
[322114168,1712795432191,-155.4,0.00019628,2]
[322114169,1712795432200,-155.4,0.00019653,2]
[322114170,1712795432210,-315.58,0.00019665,2]
[322114171,1712795432219,-155.4,0.00019677,2]
[322114172,1712795432229,-315.58,0.00019718,2]
[322114173,1712795432238,-150.0,0.00019736,2]
[322114174,1712795432247,-315.58,0.00019771,2]
[322114176,1712795432256,-315.58,0.00019823,2]
[322114177,1712795432266,-315.58,0.00019876,2]
[322114178,1712795432275,-2264.25,0.00019894,2]
[322114179,1712795432285,-1371.1698,0.000199,2]
[322114180,1712795432294,-315.58,0.00019929,2]
[322114181,1712795432302,-315.58,0.00019982,2]
[322114182,1712795432312,-155.0,0.0002,2]
[322114183,1712795432321,-500.0,0.0002,2]
[322114184,1712795432330,-315.58,0.00020034,2]
[322114185,1712795432339,-315.58,0.00020087,2]
[322114186,1712795432348,-165.72417104,0.00020088,2]
[322114187,1712795432357,-315.58,0.0002014,2]
[322114188,1712795432367,-315.58,0.00020193,2]
[322114189,1712795432376,-315.58,0.00020246,2]
[322114190,1712795432385,-3653.043,0.00020304,2]
[322114191,1712795432394,-1504.61,0.00020348,2]
[322114192,1712795432403,-3701.981,0.00020452,2]
[322114193,1712795432412,-522.0,0.00020547,2]
[322114194,1712795432421,-320.7221868,0.00020698,2]
[322114195,1712795432431,-165.72417104,0.000207,2]
[322114196,1712795432440,-11398.93849247,0.000207,2]
[322114197,1712795432449,-1980.83801829,0.000207,2]
[322114198,1712795432458,-181.68754615,0.00020787,2]
[322114199,1712795432468,-181887.18730632,0.00020797,2]
[322114200,1712795432485,-1109.80142368,0.00020797,2]
[322114201,1712795432508,-362132.79239293,0.00020797,2]
[322114202,1712795432518,-313.28763206,0.00020798,2]
[322114203,1712795432527,-906.4142451,0.00020798,2]
[322114204,1712795432537,-350.37,0.00020798,2]
[322114205,1712795432546,-700.53879767,0.00020798,2]
[322114206,1712795432555,-1134.43797734,0.00020798,2]
[322114207,1712795432565,-807.30845249,0.00020799,2]
[322114208,1712795432574,-446.65151997,0.00020799,2]
[322114209,1712795432583,-312.4020961,0.00020799,2]
[322114210,1712795432592,-245000.0,0.000208,2]
[322114211,1712795432602,-10816.5023,0.000208,2]
[322114212,1712795432612,-2308.696844,0.000208,2]
[322114213,1712795432624,-477.98482546,0.000208,2]
[322114214,1712795432636,-467.59834055,0.000208,2]
[322114215,1712795432774,-328.6223343,0.000208,2]
[322114227,1712795437969,-839.54893376,0.000208,2]
[322114230,1712795438595,-23097.36962193,0.000208,2]
[322114231,1712795438604,-175.8,0.00020848,2]
[322114232,1712795438614,-157.041109,0.00020995,4]
[322114233,1712795438623,-157.041109,0.00020996,4]
[322114234,1712795438633,-157.041109,0.00020997,4]
[322114235,1712795438642,-157.041109,0.00020998,4]
[322114236,1712795438651,-714.96210186,0.00021,2]
[322114237,1712795438661,-250.0,0.00021,3]
[322114238,1712795438670,-210.0,0.00021187,2]
[322114239,1712795438679,-1951.3,0.0002137,2]
[322114240,1712795438689,-3775.0,0.000214,2]
[322114241,1712795438699,-157.041109,0.00021495,4]
[322114242,1712795438709,-600.58,0.00021539,2]
[322114243,1712795438719,-2724.79,0.00021564,2]
[322114244,1712795438728,-1000.0,0.00021721,2]
[322114245,1712795438740,-790.9808523,0.000219,2]
[322114246,1712795438749,-250.0,0.00021918,2]
[322114247,1712795438760,-250.0,0.00021918,2]
[322114248,1712795438771,-8306.57,0.00021918,2]
[322114249,1712795438780,-157.041109,0.00021995,4]
[322114250,1712795438791,-445.57196091,0.00022,2]